Cogmind - Beta 9.5 @@@ ROGUE MODE // 2020.04.13 @ 05:50:59 Player: JerichoBot Result: Destroyed by G-47 Trooper with Particle Gun Performance ------------- Evolutions (0) 0 Regions Visited (1) 200 Robots Destroyed (6) 30 Value Destroyed (76) 76 Prototype IDs (0) 0 Alien Tech Used (0) 0 Bonus (0) 0 TOTAL SCORE: 306 Bonus ------- None Cogmind --------- Core Integrity 0/250 Matter 300/300 Energy 100/100 System Corruption 2% Temperature Cool (9) Movement Core (300) Ox5 Location -10/Materials Parts ------- > --- POWER (1) -------- (None) > --- PROPULSION (2) --- Aluminum Leg > --- UTILITY (2) ------ Large Storage Unit Improved Terrain Scanner > --- WEAPON (2) ------- (None) > --- INVENTORY (10) --- Wheel Small Storage Unit Large Matter Pod (45) Peak State ------------ > --- POWER ------------ Light Ion Engine > --- PROPULSION ------- Aluminum Leg Aluminum Leg > --- UTILITY ---------- Small Storage Unit Improved Terrain Scanner > --- WEAPON ----------- EM Pulse Gun Medium Laser > --- INVENTORY -------- Ion Engine Wheel Wheel Medium Laser [Rating: 8] Favorites ----------- Power Light Ion Engine Engine Light Ion Engine Propulsion Aluminum Leg Leg Aluminum Leg Wheel Wheel Utility Improved Terrain Scanner Device Improved Terrain Scanner Storage Large Storage Unit Weapon Medium Laser Energy Gun Medium Laser Ballistic Gun Light Assault Rifle Build | -11 -10 ------- Run | Scr Mat Slots Evolved . | . . Power . | . . Propulsion . | . . Utility . | . . Weapon . | . . Parts Attached 15 | 7 8 Power 2 | 1 1 Engine 2 | 1 1 Core . | . . Reactor . | . . Propulsion 6 | 2 4 Treads . | . . Leg 4 | 2 2 Wheel 2 | . 2 Hover . | . . Flight . | . . Utility 3 | 2 1 Device 1 | 1 . Storage 2 | 1 1 Processor . | . . Hackware . | . . Protection . | . . Artifact . | . . Weapon 4 | 2 2 Energy Gun 3 | 2 1 Energy Cannon . | . . Ballistic Gun 1 | . 1 Ballistic Cannon . | . . Launcher . | . . Special Weapon . | . . Impact Weapon . | . . Slashing Weapon . | . . Piercing Weapon . | . . Special Melee Weapon . | . . Unidentified Prototypes . | . . Parts Lost 8 | . 8 Power 2 | . 2 Propulsion 2 | . 2 Utility . | . . Weapon 4 | . 4 Highest Loss Streak 8 | . 8 Average Slot Usage (%) 88 | . 88 Engine 10 | . 10 Leg 10 | . 10 Wheel 15 | . 15 Device 14 | . 14 Storage 14 | . 14 Energy Gun 17 | . 17 Ballistic Gun 3 | . 3 Naked Turns . | . . Heaviest Build 24 | 12 24 Greatest Support 20 | 20 20 Greatest Overweight (x) 3 | 3 2 Average Overweight (x) . | . . Largest Inventory Capacity 10 | 6 10 Average Capacity 8 | 5 9 Most Carried 7 | 4 7 Average Carried 4 | 2 4 Final Capacity 10 | 6 10 Final Carried 4 | 4 3 Class Distribution -------------------- 100% | Mutant Dominant Class ---------------- Mutant | -10/Materials Resources | -11 -10 ----------- Run | Scr Mat Matter Collected 329 | 260 69 Remotely . | . . Salvage Created 124 | 12 112 Parts 12 | 3 9 Haulers Intercepted . | . . Recyclers Shooed . | . . Parts Field Recycled . | . . Retrieved Matter . | . . Parts Self-Destructed . | . . Prevented . | . . Kills | -11 -10 ------- Run | Scr Mat Combat Hostiles Destroyed 4 | . 4 Guns 3 | . 3 AOE 1 | . 1 Classes Destroyed 4 | 1 3 Builder 1 | . 1 Tunneler 1 | 1 . Swarmer 3 | . 3 Grunt 1 | . 1 Best Kill Streak 3 | 1 3 Combat Bots Only 3 | . 3 Max Kills in Single Turn 1 | 1 1 Gunslinging . | . . Exploded 1 | . 1 Melee . | . . Uniques/NPCs Destroyed . | . . Combat | -11 -10 -------- Run | Scr Mat Damage Taken 825 | . 825 Core 258 | . 258 Absorbed by Shields . | . . Core Remaining (%) 100 | 100 . Volleys Fired 31 | 2 29 Largest 2 | 2 2 Hottest 90 | 90 90 Shots Fired 50 | 4 46 Gun 50 | 4 46 Cannon . | . . Launcher . | . . Special . | . . Kinetic 18 | . 18 Thermal 19 | 2 17 Explosive . | . . Electromagnetic 13 | 2 11 Robot Hit Streak 13 | 1 13 Robot Miss Streak 2 | 2 2 Penetration Max . | . . Secondary Targets 1 | . 1 Max Gunslinging Chain 1 | . 1 Shots Hit Robots 34 | 1 33 Core Hits 13 | 1 12 Critical Hits . | . . Critical Kills . | . . Critical Parts Destroyed . | . . Melee Attacks . | . . Impact . | . . Slashing . | . . Piercing . | . . Sneak Attacks . | . . Combat Hostiles . | . . Follow-up Attacks . | . . Damage Inflicted 472 | 12 460 Guns 388 | 12 376 Cannons . | . . Explosions 72 | . 72 Melee . | . . Ramming 12 | . 12 Kinetic 143 | . 143 Thermal 234 | . 234 Explosive . | . . Electromagnetic 83 | 12 71 Impact . | . . Slashing . | . . Piercing . | . . Highest Corruption 2 | . 2 Average Corruption 2 | . 2 Corruption Purged . | . . Overload Shots . | . . Overflow Damage . | . . Projectiles . | . . Explosions . | . . Melee . | . . Knockbacks . | . . Impact . | . . Kinetic . | . . Secondary . | . . Self-Inflicted Damage 24 | . 24 Shots 1 | . 1 Rammed 12 | . 12 Targets Rammed 15 | . 15 Kicked 3 | . 3 Crushed . | . . Highest Temperature 240 | 60 240 Average Temperature 92 | 30 99 Received Heat Transfer 366 | . 366 Siege Activations . | . . Robots Corrupted . | . . Combat Hostiles . | . . Parts Fried . | . . Impact Corruptions . | . . Robots Melted . | . . Combat Hostiles . | . . Parts Melted 1 | . 1 Heat Transferred 531 | . 531 Parts Sabotaged . | . . Parts Stolen . | . . Parts Stripped . | . . Power Chain Reactions 2 | . 2 Missiles Intercepted . | . . Alert | -11 -10 ------- Run | Scr Mat Peak Influence 97 | 5 97 Average Influence 41 | . 58 Maximum Alert Level . | . . Low Security (%) 100 | 100 100 Level 1 . | . . Level 2 . | . . Level 3 . | . . Level 4 . | . . Level 5 . | . . High Security . | . . Max Security . | . . Squads Dispatched 1 | . 1 Investigation 1 | . 1 Extermination . | . . Reinforcement . | . . Assault . | . . Garrison . | . . Intercept . | . . Construction Impeded . | . . Haulers Reinforced . | . . Stealth | -11 -10 --------- Run | Scr Mat Distress Signals 1 | . 1 Communications Jammed . | . . Distress Signals . | . . Times Spotted 8 | . 8 Peak Tracking Total 4 | . 4 Tactical Retreats 1 | . 1 Traps | -11 -10 ------- Run | Scr Mat Traps Triggered 1 | . 1 Indirectly . | . . Trap Hack Attempts . | . . Triggered . | . . Disarmed . | . . Reprogrammed . | . . Reused . | . . Traps Extracted . | . . Installed . | . . Triggered . | . . Machines | -11 -10 ---------- Run | Scr Mat Machines Disabled . | . . Max in Single Turn . | . . Machines Sabotaged . | . . Garrisons Compromised . | . . Overloaded Fab Kills . | . . Fab Network Shutdowns . | . . Hacking | -11 -10 --------- Run | Scr Mat Machines Accessed 4 | . 4 Terminals 4 | . 4 Fabricators . | . . Repair Stations . | . . Recycling Units . | . . Scanalyzers . | . . Garrison Access . | . . Total Hacks 9 | . 9 Successful 5 | . 5 Failed 4 | . 4 Catastrophic 1 | . 1 Database Lockouts . | . . Manual 8 | . 8 Terminals 9 | . 9 Fabricators . | . . Repair Stations . | . . Recycling Units . | . . Scanalyzers . | . . Garrison Access . | . . Terminal Hacks 1 | . 1 Record 1 | . 1 Fabricator Hacks . | . . Repair Station Hacks . | . . Recycling Unit Hacks . | . . Scanalyzer . | . . Garrison Access Hacks . | . . Unauthorized Hacks 12 | . 12 Terminals 4 | . 4 Track 1 | . 1 Botnet 2 | . 2 Operators 1 | . 1 Fabricators . | . . Repair Stations . | . . Recycling Units . | . . Scanalyzers . | . . Garrison Access . | . . Data Cores Recovered . | . . Used . | . . Hacking Detections 3 | . 3 Full Trace Events . | . . Feedback Events . | . . Feedback Blocked . | . . Robot Schematics Acquired . | . . Robots Built . | . . Matter . | . . Time . | . . Total Robot Build Rating . | . . Part Schematics Acquired . | . . Parts Built . | . . Matter . | . . Time . | . . Total Part Build Rating . | . . Parts Repaired . | . . Time . | . . Parts Recycled . | . . Recycled Matter . | . . Retrieved Matter . | . . Retrieved Components . | . . Parts Scanalyzed . | . . Part Schematics Acquired . | . . Parts Damaged . | . . Bothacking | -11 -10 ------------ Run | Scr Mat Used RIF Installer . | . . Robots Hacked . | . . Non-combat . | . . Combat . | . . Robot Hacks Applied . | . . Relay Couplers Released . | . . Robots Rewired . | . . Allies Hacked . | . . Hacks Repelled . | . . Allies | -11 -10 -------- Run | Scr Mat Total Allies . | . . Largest Group . | . . Highest-Rated Group . | . . Highest-Rated Ally . | . . Total Orders . | . . Ally Attacks . | . . Total Damage . | . . Kills . | . . Allies Corrupted . | . . Allies Melted . | . . Intel | -11 -10 ------- Run | Scr Mat Robot Analysis Total . | . . Derelict Logs Recovered . | . . Drone Launches . | . . Drone Recoveries . | . . Exploration | -11 -10 ------------- Run | Scr Mat Turns Passed 317 | 93 224 Spaces Moved 172 | 62 110 Core 11 | 11 . Treads . | . . Legs 65 | 51 14 Wheels 96 | . 96 Hover . | . . Flight . | . . Fastest Speed 50 | 50 90 Average Speed 104 | 118 96 Slowest Speed 200 | 200 150 Overloaded Moves . | . . Propulsion Burnouts . | . . Robots Hopped . | . . Cave-ins Triggered . | . . Exploration Rate (%) 15 | 5 25 Regions Visited 1 Branch Regions . Pre-discovered Areas . | . . Known Exits Taken . | . . Unknown Exits Taken 1 | 1 . Scrap Searched . | . . Spaces Dug . | . . Terrain Destroyed 7 | . 7 Melee . | . . Projectile . | . . AOE 7 | . 7 Actions | -11 -10 --------- Run | Scr Mat Total 246 | 74 172 Wait 8 | . 8 Move 171 | 61 110 Hop . | . . Pick Up 6 | 4 2 Fast Attach 7 | 7 . Attach 4 | . 4 Detach . | . . Swap 4 | . 4 Drop . | . . Fire 31 | 2 29 Melee . | . . Ram 3 | . 3 Kick 12 | . 12 Crush . | . . Escape Stasis . | . . Rewire . | . . Trap . | . . Miscellaneous . | . . Route ------- -11/Scrapyard -10/Materials History --------- Turn | Location | Event 10 | -11/Scrapyard | Discovered new exit (range 16) 94 | -11/Scrapyard | Entered Materials 276 | -10/Materials | Core integrity fell below 50% 310 | -10/Materials | Build established: Mutant 313 | -10/Materials | Core integrity fell below 20% 318 | -10/Materials | Destroyed by G-47 Trooper with Particle Gun Last Messages --------------- 00286_ Slammed into G-47 Trooper. 00287_ Aluminum Leg permanently disabled. 00287_ Destabilizing: Short circuit. 00288_ K-01 Serf collects debris. 00289_ Kicked G-47 Trooper out of the way. 00291_ K-01 Serf collects debris. 00292_ Slammed into G-47 Trooper. 00292_ Destabilizing: System interference. 00292_ Imp. Terrain Scanner temporarily disabled. 00293_ Slammed into G-47 Trooper. 00295_ Destabilizing: Core damaged (-5). 00296_ K-01 Serf collects debris. 00296_ Slammed into G-47 Trooper. 00299_ Kicked G-47 Trooper out of the way. 00301_ Acquired 2 matter. 00304_ Slammed into G-47 Trooper. 00304_ Destabilizing: System corrupted (+2). 00305_ Slammed into G-47 Trooper. 00308_ Aluminum Leg destroyed. 00310_ Slammed into G-47 Trooper. Map ----- +----------------------------------------------------+ | ?????????????????????#?????#?############## ##?? | | ??????????????? ???????????### """ r "#?? | | ???????????????????????????#"" "T" ##?? | | ???????????????????????????#"Y == #??? | | ??????????????????# ???????#"" == #??? | | ??????????????????# ####### = #??? | | ??????????????????# #??? | | ??????????????????# ##?? | | ??????????????? """" """" "#?? | | ??????????????? ##+###+#### """" """" T#?? | | ??????????????????????? ????# """" """" "#?? | | ???????????????????????? ???# ##?? | | ????????????????? ??????? ??# ##?? | | ????????????????????????? ### """" """" #?? | | ?????????????????????????? # """" """" #?? | | ?????????????????????????? + """" """" #?? | | ?????????????? ????????????# #?? | | ????????????????? ?????????# #?? | | ???????????????? ?????????# #########" "#####?? | | ???????????????????????????#* %###?????#"T"#?????? | | ??????????????? #########% #######?#"""#?????? | | ??????????????? ! #?#####?????? | | ??????????????? #?##????????? | | ?????????o????? #???????????? | | ????????????????##############g### #?#?????????? | | ???????????????????????# @ # #??#????????? | | ??????????????????????##g ! #? #???????????? | | ??????????????????????## #?? #????#??????? | | ???????????????????????# """" "" #?? ???????????? | | ????????????????????##?# """"""" #??? ??????????? | | ?????????????????#??#??# """"""" #???? ?????????? | | ???????????????#???????# """"""" #????? #?##?????? | | ???????????????????#???# """"""" #???????????????? | | ???????????????????????###########???????????????? | | ???????????????????????????#?????????????????????? | | ?????????????????????????????????????????????????? | | ?????????????????????????#???????????#???????????? | | ?????????????????????????????????????????????????? | | ??????????????????????????????????#??????????????? | | ?????????????????????????????????#???????????????? | | ??????????????????????????????????#??????????????? | | | | | | | | | | | | | | | | | | | +----------------------------------------------------+ Best States ------------- Heat Dissipation 25 Energy Generation 10 Energy Capacity 250 Matter Stores 300 Matter Capacity 300 Sight Range 16 Terrain Scan Range 16 Terrain Scan Density 10 Evasion (%) 42 Item Schematics ----------------- None Robot Schematics ------------------ None Fabricated ------------ Nothing Alien Tech Used ----------------- None Achievements -------------- None Challenges ------------ None Game ------ Seed KineticBurstBoomstick Manual? 0 Play Time 00:08:22 Cumulative 2.1 hours Start 2020.04.13 @ 05:46:21 End 2020.04.13 @ 05:50:59 Sessions 1 Manual Loads 0 Difficulty Rogue Special Mode None Game No. 5 Rogue 5 Adventurer 0 Explorer 0 Win Type - Total 0 Types 0/0/0/0/0/0/0 Lore% 7 Gallery% 16 Achievement% 17 Wizard Run 0 Options --------- ASCII 0 Keyboard 0 Movement Numpad Keybinds 0 Fullscreen 1 Font 16/SmallcapsGlow Map View 82x53 Tactical HUD 1 Map Filters NONE Filters NONE Steam 0 RUN: e9c1083b-8009-480b-bced-7997fb3e95a4